bitfinex-derivatives/quotes_BTCF0:USTF0_20250114
["timestamp","ask_amount","ask_price","bid_price","bid_amount"]
[1736858156320,0.051965,96262.0,96243.0,0.051975]
[1736858156519,0.051965,96262.0,96242.0,0.001]
[1736858156829,0.003,96260.0,96258.0,0.051967]
[1736858157616,0.059965,96262.0,96258.0,0.051967]
[1736858158521,0.003,96260.0,96258.0,0.051967]
[1736858159314,0.003,96260.0,96258.0,0.052967]
[1736858160026,0.01,96260.0,96258.0,0.052967]
[1736858160214,0.007,96260.0,96258.0,0.052967]
[1736858161019,0.01,96260.0,96258.0,0.052967]
[1736858163432,0.01,96260.0,96258.0,0.001]
[1736858164024,0.051966,96259.0,96258.0,0.001]
[1736858164231,0.051966,96259.0,96231.0,0.051981]
[1736858164232,0.412766,96259.0,96244.0,0.051974]
[1736858164531,0.051975,96244.0,96239.0,0.051977]
[1736858164829,0.412772,96249.0,96245.0,0.051973]
[1736858165337,0.3608,96249.0,96247.0,0.051973]
[1736858165625,0.3608,96249.0,96248.0,0.051972]
[1736858165830,0.3658,96259.0,96248.0,0.051972]
[1736858166129,0.05197,96253.0,96248.0,0.051972]
[1736858166432,0.3628,96249.0,96248.0,0.051972]
[1736858167731,0.3638,96249.0,96248.0,0.051972]
[1736858167926,0.3618,96249.0,96248.0,0.051972]
[1736858168734,0.37237247,96249.0,96248.0,0.051972]
[1736858169234,0.37537247,96249.0,96248.0,0.051972]
[1736858169931,0.3648,96249.0,96248.0,0.051972]
[1736858171737,0.004,96249.0,96248.0,0.051972]
[1736858174131,0.3648,96249.0,96241.0,0.051976]
[1736858174334,0.051976,96242.0,96237.0,0.051978]
[1736858174520,0.051976,96242.0,96236.0,0.3608]
[1736858174725,0.051976,96242.0,96239.0,0.051977]
[1736858174925,0.051976,96242.0,96240.0,0.051977]
[1736858175120,0.3648,96249.0,96241.0,0.051976]
[1736858175341,0.051974,96245.0,96241.0,0.051976]
[1736858176232,0.051975,96243.0,96241.0,0.051976]
[1736858178133,0.052975,96243.0,96241.0,0.051976]
[1736858178640,0.051975,96243.0,96241.0,0.051976]
[1736858179133,0.052975,96243.0,96241.0,0.051976]
[1736858179348,0.001,96243.0,96236.0,0.3608]
[1736858179540,0.001,96243.0,96242.0,0.051976]
[1736858180625,0.051974,96245.0,96242.0,0.051976]
[1736858180827,0.001,96243.0,96242.0,0.051976]
[1736858181438,0.001,96243.0,96236.0,0.3608]
[1736858181439,0.3608,96249.0,96243.0,0.051975]
[1736858181641,0.051974,96244.0,96243.0,0.051975]
[1736858182732,0.3608,96249.0,96236.0,0.3608]
[1736858182932,0.051973,96247.0,96244.0,0.051974]
[1736858183734,0.3608,96249.0,96240.0,0.051976]
[1736858183935,0.3608,96241.0,96222.0,0.18683576]
[1736858184241,0.05198,96235.0,96222.0,0.18683576]
[1736858184436,0.05198,96235.0,96233.0,0.05198]
[1736858186041,0.05198,96235.0,96233.0,0.05298]
[1736858186856,0.05198,96234.0,96233.0,0.001]
[1736858187040,0.05198,96234.0,96233.0,0.004]
[1736858187438,0.05198,96234.0,96217.0,0.051989]
[1736858187638,0.05198,96234.0,96233.0,0.003]
[1736858189045,0.12836901,96234.0,96233.0,0.003]
[1736858191642,0.07638901,96234.0,96233.0,0.003]
[1736858192142,0.12836901,96234.0,96233.0,0.003]
[1736858197744,0.05198,96234.0,96233.0,0.003]
[1736858203346,0.051988,96220.0,96213.0,0.051991]
[1736858203546,0.051988,96219.0,96213.0,0.051991]
[1736858204655,0.051989,96218.0,96213.0,0.051991]
[1736858204846,0.051989,96218.0,96213.0,0.056991]
[1736858205247,0.001,96219.0,96213.0,0.056991]
[1736858205455,0.051989,96217.0,96213.0,0.060991]
[1736858205857,0.05199,96215.0,96213.0,0.060991]
[1736858206060,0.05199,96215.0,96213.0,0.056991]
[1736858206353,0.05199,96215.0,96213.0,0.060991]
[1736858207146,0.05199,96215.0,96213.0,0.056991]
[1736858207947,0.051991,96214.0,96213.0,0.056991]
[1736858208548,0.051991,96214.0,96213.0,0.055991]
[1736858208750,0.051991,96214.0,96213.0,0.056991]
[1736858210453,0.052991,96214.0,96213.0,0.058991]
[1736858216761,0.001,96214.0,96213.0,0.058991]
[1736858222963,0.24741919,96238.0,96213.0,0.008]
[1736858223170,0.051982,96232.0,96231.0,0.051981]
[1736858223565,0.05198,96234.0,96231.0,0.051981]
[1736858223871,0.051981,96233.0,96232.0,0.051981]
[1736858224167,0.052981,96233.0,96232.0,0.051981]
[1736858224667,0.01060983,96236.0,96231.0,0.003]
[1736858224881,0.34721898,96240.0,96234.0,0.05198]
[1736858224882,0.09979979,96240.0,96234.0,0.05198]
[1736858225069,0.0316591,96240.0,96234.0,0.05198]
[1736858226170,0.051979,96236.0,96234.0,0.05198]
[1736858226877,0.051979,96235.0,96234.0,0.05198]
[1736858227074,0.051979,96235.0,96234.0,0.001]
[1736858227670,0.051979,96235.0,96234.0,0.003]
[1736858227871,0.051979,96235.0,96234.0,0.05498]
[1736858228175,0.04185097,96240.0,96235.0,0.051979]
[1736858228486,0.04185097,96240.0,96239.0,0.051977]
[1736858228487,0.01175097,96240.0,96239.0,0.051977]
[1736858228873,0.0015591,96240.0,96239.0,0.051977]
[1736858229369,0.0015591,96240.0,96239.0,0.052977]
[1736858229676,0.0332,96258.0,96254.0,0.051969]
[1736858230181,0.0434148,96258.0,96242.0,0.051975]
[1736858230383,0.0434148,96258.0,96256.0,0.051968]
[1736858230778,0.0434148,96258.0,96251.0,0.05197]
[1736858231179,0.0434148,96258.0,96252.0,0.05197]
[1736858231180,0.0534148,96258.0,96252.0,0.05197]
[1736858231378,0.0534148,96258.0,96253.0,0.051969]
[1736858231682,0.0534148,96258.0,96255.0,0.051968]
[1736858231890,0.0524148,96258.0,96255.0,0.051968]
[1736858233372,0.0514148,96258.0,96255.0,0.051968]
[1736858233785,0.1033818,96258.0,96251.0,0.05197]
[1736858233985,0.1033818,96258.0,96252.0,0.05197]
[1736858234179,0.1043818,96258.0,96252.0,0.05197]
[1736858234885,0.1043818,96258.0,96254.0,0.051969]
[1736858235080,0.0524148,96258.0,96254.0,0.051969]
[1736858235284,0.051968,96257.0,96254.0,0.051969]
[1736858236781,0.0514148,96258.0,96249.0,0.051971]
[1736858236981,0.051969,96255.0,96249.0,0.051971]
[1736858238081,0.053969,96255.0,96249.0,0.051971]
[1736858238278,0.051969,96254.0,96249.0,0.051971]
[1736858238489,0.05197,96253.0,96249.0,0.051971]
[1736858240785,0.05397,96253.0,96249.0,0.051971]
[1736858242187,0.051973,96247.0,96240.0,0.051977]
[1736858242385,0.10380456,96250.0,96241.0,0.051976]
[1736858242587,0.051973,96247.0,96243.0,0.051975]
[1736858244392,0.052973,96247.0,96243.0,0.051975]
[1736858244796,0.001,96247.0,96239.0,0.3608]
[1736858244985,0.001,96247.0,96246.0,0.051973]
[1736858245697,0.002,96247.0,96246.0,0.051973]
[1736858246195,0.004,96247.0,96246.0,0.051973]
[1736858249792,0.004,96247.0,96246.0,0.062431]
[1736858250299,0.004,96247.0,96246.0,0.063431]
[1736858251094,0.051965,96261.0,96260.0,0.051966]
[1736858251693,0.051963,96266.0,96263.0,0.051964]
[1736858251895,0.051963,96266.0,96264.0,0.051964]
[1736858252094,0.06234179,96266.0,96264.0,0.051964]
[1736858252299,0.01037879,96266.0,96264.0,0.051963]
[1736858252492,0.00155862,96267.0,96264.0,0.051963]
[1736858252693,0.01206665,96267.0,96264.0,0.051963]
[1736858252991,0.051964,96264.0,96253.0,0.051969]
[1736858253197,0.051964,96264.0,96252.0,0.0629]
[1736858253198,0.42888172,96263.0,96258.0,0.051966]
[1736858253398,0.3608,96263.0,96258.0,0.051966]
[1736858253598,0.004,96261.0,96252.0,0.0629]
[1736858253792,0.004,96261.0,96260.0,0.051966]
[1736858254408,0.3638,96263.0,96261.0,0.051965]
[1736858255303,0.3708,96263.0,96261.0,0.051965]
[1736858255992,0.3688,96263.0,96261.0,0.052965]
[1736858256901,0.3728,96263.0,96261.0,0.052965]
[1736858257600,0.3728,96263.0,96262.0,0.051965]
[1736858258897,0.44115747,96263.0,96262.0,0.051965]
[1736858259196,0.45015747,96263.0,96262.0,0.052965]
[1736858259710,0.45015747,96263.0,96262.0,0.001]
[1736858260798,0.45015747,96263.0,96262.0,0.052965]
[1736858260997,0.3738,96263.0,96262.0,0.052965]
[1736858261698,0.3738,96263.0,96262.0,0.001]
[1736858261893,0.425764,96263.0,96262.0,0.001]
[1736858263794,0.3738,96263.0,96262.0,0.001]
[1736858263999,0.3738,96263.0,96262.0,0.052965]
[1736858265106,0.45015376,96263.0,96262.0,0.052965]
[1736858268504,0.3738,96263.0,96262.0,0.052965]
[1736858269518,0.00485911,96263.0,96262.0,0.053965]
[1736858278121,0.00485911,96263.0,96262.0,0.353965]
[1736858278617,0.24725566,96288.0,96262.0,0.302]
[1736858278813,0.24725566,96288.0,96287.0,0.051951]
[1736858279919,0.24725566,96288.0,96286.0,0.3608]
[1736858279920,0.00155804,96296.0,96286.0,0.3608]
[1736858280120,0.00155804,96296.0,96293.0,0.051948]
[1736858281017,0.3608,96294.0,96293.0,0.051948]
[1736858281520,0.3608,96294.0,96293.0,0.052948]
[1736858282112,0.43713,96294.0,96293.0,0.052948]
[1736858282511,0.489078,96294.0,96293.0,0.001]
[1736858282714,0.489078,96294.0,96293.0,0.002]
[1736858283414,0.489078,96294.0,96293.0,0.001]
[1736858283415,0.503078,96294.0,96293.0,0.001]
[1736858285523,0.45113,96294.0,96293.0,0.001]
[1736858286025,0.503078,96294.0,96293.0,0.001]
[1736858286521,0.426748,96294.0,96293.0,0.001]
[1736858287916,0.3748,96294.0,96293.0,0.052948]
[1736858288225,0.014,96294.0,96293.0,0.052948]
[1736858288822,0.3748,96294.0,96293.0,0.001]
[1736858289019,0.051954,96282.0,96273.0,0.412759]
[1736858289227,0.10367823,96283.0,96270.0,0.001558]
[1736858289522,0.051958,96275.0,96270.0,0.001558]
[1736858289719,0.051959,96273.0,96270.0,0.001558]
[1736858290628,0.051959,96273.0,96270.0,0.003558]
[1736858290828,0.3608,96273.0,96270.0,0.003558]
[1736858291017,0.05196,96271.0,96270.0,0.003558]
[1736858291223,0.05196,96271.0,96270.0,0.004558]
[1736858291520,0.3608,96273.0,96270.0,0.005558]
[1736858291724,0.05196,96271.0,96270.0,0.005558]
[1736858292628,0.033,96272.0,96270.0,0.005558]
[1736858293426,0.033,96272.0,96270.0,0.003558]
[1736858293830,0.033,96272.0,96270.0,0.002558]
[1736858294627,0.033,96272.0,96270.0,0.001558]
[1736858294830,0.05196,96271.0,96270.0,0.002558]
[1736858295527,0.41276,96271.0,96270.0,0.002558]
[1736858295725,0.051967,96259.0,96246.0,0.051973]
[1736858295924,0.0329,96258.0,96247.0,0.051973]
[1736858296125,0.36136001,96259.0,96249.0,0.10367823]
[1736858296329,0.3608,96259.0,96249.0,0.10367823]
[1736858296629,0.3608,96271.0,96254.0,0.051969]
[1736858296833,0.3608,96260.0,96249.0,0.10367823]
[1736858297227,0.412766,96260.0,96249.0,0.10367823]
[1736858297433,0.0329,96259.0,96249.0,0.16164923]
[1736858297636,0.0329,96259.0,96254.0,0.001]
[1736858299531,0.0329,96259.0,96249.0,0.16364923]
[1736858299733,0.0329,96259.0,96249.0,0.16264923]
[1736858300228,0.0329,96259.0,96254.0,0.001]
[1736858300538,0.0329,96259.0,96254.0,0.004]
[1736858300830,0.0329,96259.0,96254.0,0.001]
[1736858301040,0.0329,96259.0,96251.0,0.05197]
[1736858301428,0.0435485,96259.0,96251.0,0.05197]
[1736858302136,0.0435485,96259.0,96254.0,0.003]
[1736858302827,0.0435485,96259.0,96254.0,0.004]
[1736858303729,0.0435485,96259.0,96254.0,0.001]
[1736858304332,0.0435485,96259.0,96255.0,0.051969]
[1736858306541,0.0435485,96259.0,96255.0,0.052969]
[1736858307743,0.0435485,96259.0,96255.0,0.054969]
[1736858307943,0.0435485,96259.0,96256.0,0.051968]
[1736858308541,0.0435485,96259.0,96255.0,0.003]
[1736858308847,0.0106485,96259.0,96258.0,0.051967]
[1736858309048,0.3608,96260.0,96258.0,0.051967]
[1736858309643,0.37114353,96260.0,96258.0,0.051967]
[1736858311150,0.37114353,96260.0,96258.0,0.052967]
[1736858312351,0.37114353,96260.0,96258.0,0.001]
[1736858312550,0.37114353,96260.0,96259.0,0.051966]
[1736858315554,0.37114353,96260.0,96259.0,0.052966]
[1736858317250,0.37114353,96260.0,96259.0,0.051966]
[1736858323646,0.3608,96260.0,96259.0,0.051966]
[1736858332561,0.43715681,96260.0,96259.0,0.051966]
[1736858333665,0.3608,96260.0,96259.0,0.051966]
[1736858335763,0.43715681,96260.0,96259.0,0.051966]
[1736858338767,0.3608,96260.0,96259.0,0.051966]
[1736858340465,0.01049953,96261.0,96260.0,0.051966]
[1736858340663,0.412761,96269.0,96252.0,0.3608]
[1736858340864,0.051962,96268.0,96262.0,0.051965]
[1736858341169,0.3608,96269.0,96252.0,0.41277]
[1736858341367,0.371237,96269.0,96265.0,0.051963]
[1736858341567,0.371237,96269.0,96260.0,0.051965]
[1736858342171,0.051963,96266.0,96260.0,0.051965]
[1736858342770,0.051963,96266.0,96262.0,0.051965]
[1736858343971,0.052963,96266.0,96262.0,0.051965]
[1736858346668,0.001,96266.0,96263.0,0.051964]
[1736858348377,0.001,96266.0,96257.0,0.0636]
[1736858349071,0.001,96266.0,96262.0,0.051965]
[1736858350279,0.051963,96265.0,96258.0,0.051967]
[1736858350574,0.051963,96265.0,96260.0,0.051966]
[1736858350777,0.37175701,96269.0,96260.0,0.051966]
[1736858350966,0.051964,96264.0,96260.0,0.051966]
[1736858351676,0.3608,96261.0,96260.0,0.051966]
[1736858352279,0.3608,96261.0,96257.0,0.0636]
[1736858352579,0.3608,96261.0,96258.0,0.001]
[1736858352580,0.412766,96261.0,96258.0,0.001]
[1736858353272,0.412766,96261.0,96257.0,0.051967]
[1736858353480,0.3608,96261.0,96259.0,0.051966]
[1736858354578,0.3608,96261.0,96260.0,0.051966]
[1736858359681,0.01095701,96269.0,96268.0,0.051962]
[1736858359875,0.2470096,96270.0,96269.0,0.051961]
[1736858360585,0.41327601,96278.0,96269.0,0.051961]
[1736858360586,0.32335503,96277.0,96269.0,0.051961]
[1736858360769,0.32335503,96277.0,96270.0,0.05196]
[1736858361676,0.07634543,96277.0,96270.0,0.05196]
[1736858361868,0.086545,96277.0,96270.0,0.05196]
[1736858362276,0.01019957,96277.0,96267.0,0.0680792]
[1736858362480,0.004,96277.0,96271.0,0.05196]
[1736858363083,0.056957,96277.0,96271.0,0.05196]
[1736858363479,0.3638,96277.0,96254.0,0.3608]
[1736858363677,0.3608,96263.0,96259.0,0.051966]
[1736858364186,0.3608,96263.0,96260.0,0.051965]
[1736858364892,0.3608,96263.0,96250.0,0.0015584]
[1736858365090,0.051967,96258.0,96250.0,0.051971]
[1736858365489,0.051967,96258.0,96254.0,0.001]
[1736858366391,0.051967,96258.0,96252.0,0.05197]
[1736858366889,0.0324,96262.0,96252.0,0.05197]
[1736858367084,0.0324,96262.0,96254.0,0.001]
[1736858367391,0.0324,96262.0,96254.0,0.052969]
[1736858367989,0.3608,96255.0,96254.0,0.055969]
[1736858368385,0.3608,96255.0,96254.0,0.052969]
[1736858368585,0.3608,96255.0,96254.0,0.054969]
[1736858368989,0.3608,96255.0,96254.0,0.051969]
[1736858369188,0.3608,96255.0,96254.0,0.054969]
[1736858369587,0.3608,96255.0,96254.0,0.055969]
[1736858371787,0.43716086,96255.0,96254.0,0.055969]
[1736858373297,0.48912986,96255.0,96246.0,0.051973]
[1736858373600,0.43716086,96255.0,96246.0,0.051973]
[1736858373787,0.43716086,96255.0,96240.0,0.0680792]
[1736858373994,0.412769,96255.0,96247.0,0.051973]
[1736858374798,0.413769,96255.0,96247.0,0.051973]
[1736858375299,0.412769,96255.0,96247.0,0.056973]
[1736858375498,0.12833546,96254.0,96247.0,0.058973]
[1736858376499,0.07636646,96253.0,96247.0,0.058973]
[1736858377499,0.07636646,96253.0,96247.0,0.057973]
[1736858377905,0.051969,96254.0,96247.0,0.051973]
[1736858378202,0.051969,96254.0,96247.0,0.057973]
[1736858378989,0.3608,96255.0,96247.0,0.053973]
[1736858379200,0.05197,96253.0,96247.0,0.056973]
[1736858379699,0.3608,96255.0,96247.0,0.055973]
[1736858379899,0.051971,96252.0,96247.0,0.055973]
[1736858381201,0.051971,96252.0,96247.0,0.052973]
[1736858381398,0.051971,96252.0,96247.0,0.004]
[1736858381906,0.051971,96251.0,96247.0,0.004]
[1736858382315,0.051971,96251.0,96247.0,0.003]
[1736858382513,0.051971,96251.0,96247.0,0.004]
[1736858384109,0.37183859,96255.0,96252.0,0.05197]
[1736858384314,0.37131858,96255.0,96252.0,0.05197]
[1736858385211,0.37131858,96255.0,96252.0,0.05397]
[1736858387120,0.37131858,96255.0,96254.0,0.051969]
[1736858389018,0.37231858,96255.0,96254.0,0.051969]
[1736858390318,0.3618,96255.0,96254.0,0.051969]
[1736858391714,0.3618,96255.0,96254.0,0.052969]
[1736858391915,0.001,96255.0,96254.0,0.052969]
[1736858392117,0.2470096,96271.0,96254.0,0.053969]
[1736858392424,0.051962,96267.0,96263.0,0.051964]
[1736858394619,0.055962,96267.0,96264.0,0.051964]
[1736858394828,0.004,96267.0,96263.0,0.051964]
[1736858395223,0.005,96267.0,96263.0,0.051964]
[1736858395727,0.001,96267.0,96263.0,0.051964]
[1736858395927,0.005,96267.0,96266.0,0.051963]
[1736858396923,0.004,96267.0,96266.0,0.051963]
[1736858397132,0.004,96267.0,96257.0,0.4288792]
[1736858397133,0.006,96267.0,96262.0,0.051965]
[1736858397427,0.006,96267.0,96263.0,0.051964]
[1736858397819,0.006,96267.0,96257.0,0.4295192]
[1736858398020,0.006,96267.0,96266.0,0.051963]
[1736858398622,0.005,96267.0,96266.0,0.051963]
[1736858399424,0.002,96267.0,96266.0,0.051963]
[1736858400027,0.005,96267.0,96266.0,0.051963]
[1736858400223,0.007,96267.0,96266.0,0.051963]
[1736858412733,0.007,96267.0,96266.0,0.412763]
[1736858412926,0.005,96267.0,96266.0,0.412763]
[1736858413127,0.004,96267.0,96266.0,0.412763]
[1736858415339,0.0324,96286.0,96266.0,0.3618]
[1736858415635,0.0324,96286.0,96281.0,0.051955]
[1736858415836,0.01041085,96283.0,96281.0,0.051955]
[1736858416030,0.01041085,96283.0,96282.0,0.051954]
[1736858416232,0.00155835,96287.0,96286.0,0.051952]
[1736858416829,0.01204945,96287.0,96286.0,0.051952]
[1736858417433,0.01704945,96287.0,96286.0,0.051952]
[1736858418444,0.02604945,96287.0,96286.0,0.052952]
[1736858419330,0.01555835,96287.0,96286.0,0.052952]
[1736858419536,0.014,96287.0,96286.0,0.053952]
[1736858421536,0.011,96287.0,96286.0,0.053952]
[1736858421742,0.1,96300.0,96299.0,0.051945]
[1736858422042,0.1,96300.0,96299.0,0.412745]
[1736858423047,0.106,96300.0,96299.0,0.413745]
[1736858423241,0.115,96300.0,96299.0,0.414745]
[1736858425445,0.115,96300.0,96299.0,0.415745]
[1736858427841,0.111,96300.0,96299.0,0.415745]
[1736858428544,0.109,96300.0,96299.0,0.414745]
[1736858437347,0.3608,96316.0,96315.0,0.051936]
[1736858437847,0.0322,96319.0,96318.0,0.051935]
[1736858441052,0.0332,96319.0,96318.0,0.052935]
[1736858441348,0.0342,96319.0,96318.0,0.052935]
[1736858444450,0.0332,96319.0,96318.0,0.052935]
[1736858446458,0.001,96319.0,96318.0,0.053935]
[1736858446759,0.001,96319.0,96318.0,0.414735]
[1736858447347,0.001,96319.0,96318.0,0.3618]
[1736858447547,0.003,96319.0,96318.0,0.413735]
[1736858449259,0.051905,96373.0,96341.0,0.051922]
[1736858449451,0.01020912,96348.0,96341.0,0.051922]
[1736858449755,0.01020912,96348.0,96335.0,0.051925]
[1736858449756,0.2470096,96344.0,96335.0,0.051925]
[1736858450058,0.2470096,96344.0,96343.0,0.051921]
[1736858450646,0.2470096,96344.0,96343.0,0.412721]
[1736858450943,0.0326,96353.0,96352.0,0.051916]
[1736858451456,0.04303141,96353.0,96352.0,0.051916]
[1736858451856,0.0326,96353.0,96352.0,0.051916]
[1736858452045,0.0326,96353.0,96352.0,0.412716]
[1736858452860,0.0326,96353.0,96352.0,0.052916]
[1736858453465,0.0326,96353.0,96352.0,0.053916]
[1736858453755,0.0326,96353.0,96352.0,0.414716]
[1736858454149,0.03415711,96362.0,96361.0,0.051912]
[1736858454759,0.00155711,96362.0,96361.0,0.412712]
[1736858455455,0.0301,96365.0,96364.0,0.05191]
[1736858456153,0.03,96379.0,96374.0,0.051905]
[1736858456359,0.03,96379.0,96378.0,0.051902]
[1736858456558,0.0325,96383.0,96374.0,0.051905]
[1736858456755,0.0325,96383.0,96382.0,0.0519]
[1736858456952,0.0325,96383.0,96382.0,0.4127]
[1736858458053,0.0325,96383.0,96382.0,0.4137]
[1736858458259,0.1,96400.0,96399.0,0.051891]
[1736858458663,0.1,96400.0,96399.0,0.413691]
[1736858459361,0.1,96400.0,96399.0,0.051891]
[1736858459568,0.1,96400.0,96390.0,0.3608]
[1736858459859,0.20353896,96400.0,96395.0,0.051893]
[1736858460062,0.1,96400.0,96395.0,0.051893]
[1736858460360,0.3608,96396.0,96374.0,0.0006]
[1736858460563,0.3608,96388.0,96373.0,0.3608]
[1736858460770,0.10353896,96383.0,96373.0,0.3608]
[1736858461362,0.051901,96381.0,96373.0,0.412705]
[1736858461555,0.051902,96378.0,96373.0,0.3608]
[1736858461757,0.0331,96377.0,96373.0,0.3608]
[1736858462161,0.0331,96377.0,96376.0,0.051903]
[1736858463454,0.0331,96377.0,96374.0,0.009]
[1736858463660,0.0331,96377.0,96373.0,0.3608]
[1736858463861,0.0391,96377.0,96373.0,0.3608]
[1736858464254,0.006,96377.0,96376.0,0.051903]
[1736858464558,0.006,96377.0,96376.0,0.052903]
[1736858464760,8.139e-05,96382.0,96380.0,0.051901]
[1736858464965,8.139e-05,96382.0,96376.0,0.001]
[1736858465161,0.051901,96381.0,96373.0,0.413705]
[1736858466359,0.051901,96381.0,96373.0,0.412705]
[1736858466561,0.006,96377.0,96373.0,0.412705]
[1736858467070,0.0317,96376.0,96373.0,0.412705]
[1736858467371,0.0317,96376.0,96375.0,0.051904]
[1736858469062,0.6925,96376.0,96354.0,0.00155671]
[1736858469370,0.05191,96365.0,96356.0,0.051914]
[1736858469666,0.3608,96367.0,96354.0,0.00155671]
[1736858469667,0.08411,96364.0,96355.0,0.051914]
[1736858469871,0.08411,96364.0,96356.0,0.051914]
[1736858470167,0.051911,96363.0,96356.0,0.051914]
[1736858470869,0.051912,96361.0,96356.0,0.051914]
[1736858471071,0.0322,96364.0,96355.0,0.002]
[1736858471266,0.0322,96364.0,96356.0,0.051914]
[1736858471463,0.0322,96364.0,96356.0,0.053914]
[1736858472271,0.0322,96364.0,96356.0,0.002]
[1736858472465,0.0322,96364.0,96357.0,0.051914]
[1736858472668,0.051909,96366.0,96359.0,0.051913]
[1736858473770,0.051909,96366.0,96360.0,0.051912]
[1736858474071,0.3608,96367.0,96356.0,0.003]
[1736858474269,0.051912,96360.0,96356.0,0.002]
[1736858474465,0.0322,96359.0,96356.0,0.002]
[1736858474775,0.0312,96358.0,96356.0,0.002]
[1736858474963,0.083113,96358.0,96356.0,0.002]
[1736858475361,0.0322,96359.0,96358.0,0.051913]
[1736858477072,0.0352,96359.0,96358.0,0.051913]
[1736858479073,0.003,96359.0,96358.0,0.051913]
[1736858480571,0.051909,96365.0,96354.0,0.00155671]
[1736858481369,0.003,96359.0,96357.0,0.051914]
[1736858482173,0.051913,96358.0,96354.0,0.00155671]
[1736858482373,0.084913,96358.0,96354.0,0.00155671]
[1736858482674,0.3938,96358.0,96354.0,0.00155671]
[1736858482874,0.051915,96355.0,96354.0,0.00155671]
[1736858484777,0.052915,96355.0,96354.0,0.00155671]
[1736858485766,0.001,96355.0,96354.0,0.00155671]
[1736858485971,0.052915,96355.0,96354.0,0.00155671]
[1736858486176,0.001,96355.0,96354.0,0.00155671]
[1736858486379,0.001,96355.0,96354.0,0.05347171]
[1736858487578,0.001,96355.0,96354.0,0.38309824]
[1736858488677,0.001,96355.0,96354.0,0.33118324]
[1736858488875,0.052915,96355.0,96354.0,0.33118324]
[1736858498883,0.06337886,96355.0,96354.0,0.33118324]
[1736858499283,0.052915,96355.0,96354.0,0.33118324]
[1736858499874,0.12920348,96355.0,96354.0,0.33118324]
[1736858500480,0.07728848,96355.0,96354.0,0.38309824]
[1736858501085,0.12920348,96355.0,96354.0,0.33118324]
[1736858501981,0.052915,96355.0,96354.0,0.33118324]
[1736858513092,0.12920033,96355.0,96354.0,0.33118324]
[1736858514398,0.22481903,96355.0,96354.0,0.33118324]
[1736858515397,0.12920033,96355.0,96354.0,0.33118324]
[1736858516195,0.052915,96355.0,96354.0,0.33118324]
[1736858517399,0.22481917,96355.0,96354.0,0.33118324]
[1736858518194,0.051922,96341.0,96340.0,0.0306]
[1736858518398,0.3608,96341.0,96322.0,0.00155726]
[1736858518593,0.051931,96325.0,96322.0,0.00155726]
[1736858519298,0.051931,96325.0,96314.0,0.31110075]
[1736858519905,0.051931,96325.0,96309.0,0.3608]
[1736858520098,0.412733,96320.0,96309.0,0.3608]
[1736858522799,0.414733,96320.0,96309.0,0.3608]
[1736858523201,0.415733,96320.0,96309.0,0.3608]
[1736858524210,0.415733,96320.0,96302.0,0.0331]
[1736858524511,0.051943,96303.0,96302.0,0.0331]
[1736858525704,0.051943,96303.0,96302.0,0.0351]
[1736858526511,0.051943,96303.0,96302.0,0.0401]
[1736858527506,0.051943,96303.0,96302.0,0.007]
[1736858529808,0.051943,96303.0,96283.0,0.0933]
[1736858529809,0.051953,96284.0,96283.0,0.0933]
[1736858531503,0.052953,96284.0,96283.0,0.1023]
[1736858532503,0.052953,96284.0,96283.0,0.1073]
[1736858542620,0.052953,96284.0,96283.0,0.014]
[1736858560125,0.413753,96284.0,96283.0,0.014]
[1736858564428,0.052953,96284.0,96283.0,0.014]
[1736858564626,0.413753,96284.0,96283.0,0.014]
[1736858581642,0.412753,96284.0,96283.0,0.002]
[1736858581843,0.412753,96284.0,96283.0,0.003]
[1736858587453,0.4890958,96284.0,96283.0,0.003]
[1736858589157,0.412753,96284.0,96283.0,0.003]
[1736858590756,0.48909587,96284.0,96283.0,0.003]
[1736858591665,0.412753,96284.0,96283.0,0.003]
[1736858596362,0.051959,96272.0,96271.0,0.0331]
[1736858596559,0.412759,96272.0,96271.0,0.0331]
[1736858596763,0.051963,96265.0,96261.0,0.18666045]
[1736858598966,0.051963,96265.0,96264.0,0.0688]
[1736858601070,0.052963,96265.0,96264.0,0.0778]
[1736858614572,0.413763,96265.0,96264.0,0.0778]
[1736858615181,0.051972,96248.0,96231.0,0.3740009]
[1736858615382,0.051978,96238.0,96231.0,0.3740009]
[1736858616183,0.051981,96232.0,96231.0,0.00068]
[1736858616386,0.051983,96227.0,96226.0,0.31110075]
[1736858617483,0.06252714,96227.0,96200.0,0.1]
[1736858617787,0.051996,96204.0,96203.0,0.0318]
[1736858619782,0.3608,96214.0,96203.0,0.0318]
[1736858620279,0.051992,96212.0,96204.0,0.001]
[1736858620481,0.051992,96212.0,96206.0,0.051995]
[1736858620778,0.3608,96214.0,96210.0,0.051992]
[1736858620981,0.3608,96214.0,96204.0,0.001]
[1736858621176,0.01024503,96216.0,96204.0,0.001]
[1736858621177,0.01024503,96216.0,96212.0,0.051991]
[1736858621380,0.051989,96217.0,96212.0,0.051991]
[1736858621581,0.0305,96231.0,96207.0,0.3608]
[1736858621582,0.051984,96227.0,96216.0,0.3608]
[1736858621782,0.051984,96227.0,96218.0,0.10386296]
[1736858621983,0.01059629,96229.0,96221.0,0.051987]
[1736858622185,0.051984,96227.0,96222.0,0.0322]
[1736858622387,0.10386296,96240.0,96223.0,0.0301]
[1736858622593,0.412781,96232.0,96226.0,0.051984]